fUSD/lending_fUSD_20250201
["ID","MTS","AMOUNT","RATE_DAILY","PERIOD"]
[351205619,1738421444747,-500.0,0.00016373,2]
[351205620,1738421444755,-500.0,0.00016373,2]
[351205621,1738421444764,-500.0,0.00016373,2]
[351205622,1738421444777,-150.0,0.00016378,2]
[351205623,1738421444787,-166.74863837,0.0001639,2]
[351205624,1738421444796,-5800.0,0.00016392,2]
[351205625,1738421444805,-173.994075,0.00016399,2]
[351205626,1738421444815,-173.994075,0.00016399,2]
[351205627,1738421444824,-71359.95569086,0.000164,2]
[351205635,1738421445592,-802.52701399,0.000164,2]
[351205636,1738421445789,-2293.40723994,0.000164,2]
[351205637,1738421445902,-3016.1816,0.000164,2]
[351205639,1738421448298,10000.0,0.00023,120]
[351205642,1738421630055,185.04,0.00010137,2]
[351205647,1738422504042,150.47,0.00010137,2]
[351205655,1738422557998,160.0,0.00023,120]
[351205669,1738422631882,-589.287992,0.00011761,2]
[351205670,1738422632811,-469.6296619,0.00011761,2]
[351205671,1738422632820,-680.05784628,0.0001238,2]
[351205672,1738422632855,-378.94215372,0.0001238,2]
[351205673,1738422632869,-150.0,0.00012937,2]
[351205674,1738422632878,-150.0,0.00012937,2]
[351205675,1738422632892,-150.0,0.00012937,2]
[351205676,1738422632901,-1437.56938656,0.00012937,2]
[351205695,1738422637914,-550.0,0.00013,2]
[351205696,1738422637924,-121.57946314,0.00013032,2]
[351205697,1738422638050,-327.78017451,0.00013032,2]
[351205698,1738422638062,-609.64036235,0.00013032,2]
[351205699,1738422638071,-576.57,0.00013168,2]
[351205700,1738422638081,-1059.0,0.00013718,2]
[351205701,1738422638091,-1059.0,0.0001444,2]
[351205702,1738422638100,-278.75746734,0.00015,2]
[351205703,1738422638111,-321.24253266,0.00015,2]
[351205704,1738422638120,-1500.0,0.000151,2]
[351205705,1738422638130,-1059.0,0.00015161,2]
[351205709,1738422638351,-150.0,0.00015409,2]
[351205711,1738422638362,-231.37,0.00015429,2]
[351205712,1738422638372,-576.57,0.00015431,2]
[351205713,1738422638382,-1000.0,0.00015461,2]
[351205715,1738422638393,-171.03,0.00015477,2]
[351205716,1738422638402,-1637.38124957,0.00015499,2]
[351205718,1738422638414,-322.14875043,0.00015499,2]
[351205719,1738422638424,-410.36,0.00015678,2]
[351205720,1738422638433,-150.0,0.00015678,2]
[351205721,1738422638442,-150.0,0.00015678,2]
[351205722,1738422638452,-492.85,0.00015678,2]
[351205723,1738422638461,-150.0,0.00015678,2]
[351205724,1738422638473,-438.4,0.00015678,2]
[351205725,1738422638483,-150.0,0.00015678,2]
[351205726,1738422638493,-438.4,0.00015678,2]
[351205727,1738422638502,-150.0,0.00015678,2]
[351205728,1738422638512,-300.0,0.00015753,2]
[351205729,1738422638523,-1059.0,0.0001592,2]
[351205730,1738422638534,-3909.0,0.00016014,2]
[351205731,1738422638544,-150.0,0.00016014,2]
[351205732,1738422638555,-1079.892,0.00016014,2]
[351205733,1738422638566,-373.4,0.00016152,2]
[351205734,1738422638575,-1459.0568311,0.000162,2]
[351205735,1738422638586,-2298.89668845,0.0001624,2]
[351205742,1738422639952,-200.0,0.000157,5]
[351205743,1738422639963,-1260.30298984,0.0001624,2]
[351205744,1738422640220,-440.80032171,0.0001624,2]
[351205745,1738422640231,-2983.5381,0.000163,2]
[351205746,1738422640241,-260.2012,0.000163,2]
[351205747,1738422640251,-169.84136471,0.000163,2]
[351205748,1738422640261,-14392.6689,0.000163,2]
[351205749,1738422640271,-3873.6325,0.000163,2]
[351205750,1738422640280,-1352.553,0.000163,2]
[351205751,1738422640290,-174.61724048,0.000163,2]
[351205752,1738422640299,-2037.356,0.00016373,2]
[351205753,1738422640309,-171.95363862,0.00016373,2]
[351205754,1738422640319,-500.0,0.00016399,2]
[351205755,1738422640328,-500.0,0.00016399,2]
[351205756,1738422640338,-500.0,0.00016399,2]
[351205757,1738422640347,-500.0,0.00016399,2]
[351205758,1738422640357,-500.0,0.00016399,2]
[351205759,1738422640366,-500.0,0.00016399,2]
[351205760,1738422640376,-500.0,0.00016399,2]
[351205761,1738422640387,-243.94645207,0.00016399,2]
[351205762,1738422640397,-500.0,0.00016399,2]
[351205763,1738422640407,-500.0,0.00016399,2]
[351205764,1738422640417,-48342.47314894,0.000164,2]
[351205765,1738422640429,-41301.07143796,0.000164,2]
[351205766,1738422640445,-650.32000001,0.000164,2]
[351205767,1738422640457,-740.5496385,0.000164,2]
[351205788,1738422642912,-500.0,0.000158,5]
[351205789,1738422642921,-15820.45032808,0.000164,2]
[351205790,1738422642933,-2380.0,0.000164,2]
[351205791,1738422643230,-800.89537267,0.000164,2]
[351205800,1738422645882,-696.054795,0.000159,5]
[351205801,1738422646103,-103.945205,0.000159,5]
[351205802,1738422646113,-22496.054795,0.000164,2]
[351205803,1738422646126,-2845.0,0.000164,2]
[351205807,1738423354383,160.36,0.00010137,2]
[351205809,1738423424790,911.35399451,0.00021781,120]
[351205845,1738423831997,-150.0,0.00012399,2]
[351205846,1738423832006,-109.0,0.0001242,2]
[351205847,1738423832043,-41.0,0.0001242,2]
[351205848,1738423832053,-155.77915431,0.00012459,2]
[351205849,1738423832062,-150.0,0.00012465,2]
[351205850,1738423832071,-837.27,0.00012482,2]
[351205852,1738423832080,-150.0,0.00012544,2]
[351205854,1738423832090,-150.0,0.00012559,2]
[351205857,1738423832099,-669.48,0.00012688,2]
[351205859,1738423832108,-1000.0,0.00012754,2]
[351205861,1738423832117,-1233.42,0.0001277,2]
[351205862,1738423832126,-250.0,0.00012893,2]
[351205863,1738423832135,-300.0,0.00012947,2]
[351205864,1738423832145,-998.78,0.00012997,2]
[351205865,1738423832155,-941.5,0.00013049,2]
[351205866,1738423832163,-1800.62,0.000132,2]
[351205867,1738423832173,-1097.68,0.00013242,2]
[351205868,1738423832182,-7521.63,0.00013299,2]
[351205869,1738423832191,-155.77915431,0.00013539,2]
[351205870,1738423832200,-1215.88069255,0.00013539,2]
[351205871,1738423832210,-1008.75023516,0.00013634,2]
[351205872,1738423832219,-150.0,0.00013634,2]
[351205873,1738423832227,-46196.48581101,0.00013635,7]
[351205874,1738423832243,-1359.9470844,0.00013635,7]
[351205875,1738423832254,-18467.62215189,0.00013635,7]
[351205876,1738423832264,-150.0,0.00013639,2]
[351205877,1738423832275,-187.46,0.00013699,2]
[351205878,1738423832285,-1187.52,0.00013966,2]
[351205879,1738423832296,-7378.05,0.00014141,2]
[351205880,1738423832306,-167.39,0.00014143,2]
[351205883,1738423832496,-642.78,0.00014144,2]
[351205885,1738423832506,-500.0,0.00014167,2]
[351205887,1738423832516,-150.0,0.00014208,2]
[351205889,1738423832525,-585.41,0.00014314,2]
[351205891,1738423832535,-23900.0,0.00014327,2]
[351205893,1738423832545,-204.38371016,0.00014327,2]
[351205895,1738423832554,-44306.39336331,0.00014327,2]
[351205897,1738423832566,-1851.87876975,0.00014327,2]
[351205900,1738423832583,-489.17253924,0.00014327,2]
[351205902,1738423832594,-18451.14210832,0.00014327,2]
[351205906,1738423832620,-3305.6986983,0.00014327,2]
[351205908,1738423832631,-1523.9106469,0.00014327,2]
[351205910,1738423832643,-847.24815466,0.00014327,2]
[351205912,1738423832657,-150.0,0.00014348,2]
[351205914,1738423832674,-1000.0,0.00014349,2]
[351205916,1738423832684,-459.85,0.00014368,2]
[351205918,1738423832695,-1215.88069254,0.00014371,2]
[351205920,1738423832705,-200.0,0.00014374,2]
[351205923,1738423832716,-22160.22394042,0.0001439,2]
[351205926,1738423832736,-1513.29,0.0001279,2]
[351205928,1738423832745,-152475.78919398,0.0001439,2]
[351205931,1738423832766,-76048.14427583,0.0001439,2]
[351205933,1738423832776,-3248.39522,0.0001439,2]
[351205944,1738423837951,-1480.592005,0.0001439,2]
[351205945,1738423837994,-535.08769391,0.0001439,2]
[351205946,1738423838007,-266268.73912708,0.0001439,2]
[351205947,1738423838322,-51000.00000003,0.0001439,2]
[351205977,1738423840382,-340.41,0.0001439,2]
[351205978,1738423840429,-6478.48087339,0.0001439,2]
[351206018,1738423846602,-564.4512074,0.0001439,2]
[351206026,1738424207094,199.1905949,0.00021781,120]
[351206027,1738424215760,225.88,0.00023,120]
[351206028,1738424227926,225.87,0.00023,120]
[351206035,1738424381933,183.55,0.00010137,2]
[351206061,1738424778276,40990.15318848,0.00013122,6]
[351206069,1738425032599,-710.95269134,0.0001235,2]
[351206089,1738425038356,-137.58730866,0.0001235,2]
[351206090,1738425038365,-150.0,0.00012431,2]
[351206091,1738425038375,-550.0,0.00013,2]
[351206092,1738425038384,-3785.83533745,0.00013485,2]
[351206093,1738425038393,-234.35336079,0.00013526,2]
[351206094,1738425038404,-529.47807039,0.00013526,2]
[351206095,1738425038415,-3022.00390627,0.00013526,2]
[351206096,1738425038424,-150.0,0.00013585,2]
[351206097,1738425038434,-150.0,0.00013585,2]
[351206098,1738425038444,-4100.11,0.00013618,2]
[351206100,1738425038453,-243.56,0.00013626,2]
[351206102,1738425038464,-281.73,0.00013638,2]
[351206105,1738425038475,-196.06,0.00013679,2]
[351206107,1738425038485,-1852.42,0.0001371,2]
[351206108,1738425038494,-285.46,0.00013758,2]
[351206110,1738425038503,-3149.62,0.00013764,2]
[351206111,1738425038513,-150.0,0.00013781,2]
[351206112,1738425038522,-1000.0,0.00013806,2]
[351206113,1738425038532,-250.0,0.00013808,2]
[351206114,1738425038541,-234.57,0.00013824,2]
[351206115,1738425038550,-379.2,0.00013834,2]
[351206117,1738425038559,-854.8,0.00013834,2]
[351206118,1738425038570,-416.46283652,0.00014035,2]
[351206119,1738425038579,-635.35,0.00014078,2]
[351206120,1738425038588,-386.88,0.00014078,2]
[351206121,1738425038598,-1500.0,0.00014237,2]
[351206122,1738425038607,-4000.0,0.0001425,2]
[351206123,1738425038617,-500.0,0.00014256,2]
[351206124,1738425038630,-200.0,0.00014257,2]
[351206125,1738425038640,-12090.74584814,0.00014262,2]
[351206126,1738425038651,-150.0,0.00014262,2]
[351206127,1738425038660,-23900.0,0.00014263,2]
[351206128,1738425038669,-199.31,0.00014289,2]
[351206129,1738425038679,-810.58712836,0.0001429,2]
[351206130,1738425038688,-200.0,0.00014329,2]
[351206131,1738425038697,-355.8,0.00014351,2]
[351206132,1738425038706,-847.63,0.0001436,2]
[351206133,1738425038716,-150.0,0.0001436,2]
[351206134,1738425038725,-1000.0,0.00014389,2]
[351206135,1738425038735,-200.0,0.00014425,2]
[351206136,1738425038744,-948.32,0.00014467,2]
[351206137,1738425038753,-1573.13,0.00014476,2]
[351206138,1738425038762,-1000.0,0.000145,2]
[351206139,1738425038771,-1950.59545705,0.00014514,2]
[351206140,1738425038780,-776.99,0.00014575,2]
[351206141,1738425038789,-79160.85789255,0.00014587,2]
[351206142,1738425038798,-207.41890364,0.00014614,2]
[351206143,1738425038810,-641.12109636,0.00014614,2]
[351206144,1738425038819,-878.38,0.00014682,2]
[351206145,1738425038829,-765.93,0.00014682,2]
[351206146,1738425038838,-1950.59545701,0.00014724,2]
[351206147,1738425038847,-193.12,0.00014763,2]
[351206148,1738425038856,-10476.94261957,0.00014764,2]
[351206149,1738425040497,-9541.89289339,0.00014764,2]
[351206150,1738425040509,-3461.44359667,0.00014764,2]
[351206151,1738425040520,-462.1844928,0.00014764,2]
[351206152,1738425040532,-455.494,0.00014764,2]
[351206153,1738425040543,-343.48470714,0.00014764,2]
[351206154,1738425040571,-258.89357275,0.00014078,2]
[351206155,1738425040583,-157.56926377,0.00014078,2]
[351206156,1738425040592,-655.17473622,0.00014764,2]
[351206157,1738425040603,-4083.9871987,0.00014764,2]
[351206158,1738425040614,-726.109324,0.00014764,2]
[351206159,1738425040632,-818.31750002,0.00014764,2]
[351206160,1738425040643,-4381.25527597,0.00014764,2]
[351206177,1738425043263,-216.71365552,0.00014764,2]
[351206178,1738425043273,-150.0,0.00014767,2]
[351206179,1738425043284,-347.37,0.00014767,2]
[351206180,1738425043293,-301.32,0.00014767,2]
[351206181,1738425043303,-150.0,0.00014767,2]
[351206182,1738425043312,-174.71,0.00014838,2]
[351206183,1738425043322,-234.73034448,0.00014849,2]
[351206184,1738425046165,-203.53965552,0.00014849,2]
[351206185,1738425046176,-322.87440533,0.00014933,2]
[351206186,1738425046228,-1627.72105168,0.00014933,2]
[351206187,1738425046238,-3583.54595801,0.0001494,2]
[351206188,1738425046248,-299.53,0.00014956,2]
[351206189,1738425046258,-810.58712836,0.00014972,2]
[351206190,1738425046267,-600.0,0.00015,2]
[351206191,1738425046282,-1000.0,0.00015,2]
[351206192,1738425046293,-1791.24687852,0.00015043,2]
[351206193,1738425046306,-95.26501599,0.00015043,2]
[351206194,1738425046317,-228.04498401,0.00015068,2]
[351206195,1738425046330,-127.75501599,0.00015068,2]
[351206196,1738425046339,-243.75,0.00015073,2]
[351206197,1738425046349,-3292.95341898,0.00015109,2]
[351206198,1738425046359,-322.73,0.00015121,2]
[351206199,1738425046369,-322.73,0.00015125,2]
[351206200,1738425046379,-322.73,0.00015129,2]
[351206201,1738425046388,-322.73,0.00015133,2]
[351206202,1738425046397,-322.73,0.00015137,2]
[351206203,1738425046406,-322.73,0.00015141,2]
[351206204,1738425046415,-1950.59545701,0.00015143,2]
[351206205,1738425046424,-322.73,0.00015145,2]
[351206206,1738425046433,-322.73,0.00015149,2]
[351206207,1738425046442,-322.73,0.00015153,2]
[351206208,1738425046451,-322.73,0.00015157,2]
[351206209,1738425046460,-6500.97878054,0.00015159,2]
[351206210,1738425046470,-322.73,0.00015161,2]
[351206211,1738425046479,-322.73,0.00015165,2]
[351206212,1738425046488,-322.73,0.00015169,2]
[351206213,1738425046497,-322.73,0.00015173,2]
[351206214,1738425046506,-322.73,0.00015177,2]
[351206215,1738425046515,-322.73,0.00015181,2]
[351206216,1738425046524,-322.73,0.00015185,2]
[351206217,1738425046533,-322.73,0.00015188,2]
[351206218,1738425046542,-322.73,0.00015192,2]
[351206219,1738425046551,-322.73,0.00015196,2]
[351206220,1738425046560,-747.81911974,0.00015352,2]
[351206221,1738425046585,-1202.77633727,0.00015352,2]
[351206222,1738425046594,-255.0,0.00015388,2]
[351206223,1738425046603,-150.0,0.00015461,2]
[351206224,1738425046612,-1000.0,0.000155,2]
[351206225,1738425046622,-276.1695012,0.00015514,2]
[351206226,1738425046631,-1000.0,0.00015532,2]
[351206227,1738425046640,-234.57,0.00015552,2]
[351206228,1738425046650,-1950.59545701,0.00015562,2]
[351206229,1738425046661,-810.58712836,0.00015654,2]
[351206230,1738425046670,-174.71,0.00015654,2]
[351206231,1738425046680,-150.0,0.0001572,2]
[351206232,1738425046689,-1950.59545701,0.00015771,2]
[351206233,1738425046698,-355.8,0.00015786,2]
[351206234,1738425046707,-1374.4241749,0.00015888,2]
[351206235,1738425046716,-1369.11959562,0.000159,2]
[351206236,1738425046726,-642.78,0.00015912,2]
[351206237,1738425046735,-1950.59545701,0.00015981,2]
[351206238,1738425046744,-1000.0,0.00016,2]
[351206239,1738425046753,-9066.40374506,0.00016,2]
[351206251,1738425290209,-158.91,0.00016658,30]
[351206252,1738425408339,150.47,0.00010137,2]
[351206254,1738425631453,150.0,0.00021486,120]
[351206255,1738425691259,150.0,0.00022614,120]
[351206256,1738425750809,150.0,0.00020957,120]
[351206258,1738425911757,158.91,0.00016658,30]
[351206268,1738426232396,-550.0,0.00013,2]
[351206269,1738426232406,-150.0,0.00013049,2]
[351206270,1738426232415,-2103.91392094,0.00013108,2]
[351206271,1738426232425,-796.05,0.0001321,2]
[351206272,1738426232435,-3803.13602749,0.0001321,2]
[351206273,1738426232445,-150.0,0.000143,2]
[351206274,1738426232455,-150.0,0.000143,2]
[351206275,1738426232465,-150.0,0.000143,2]
[351206276,1738426232475,-150.0,0.000143,2]
[351206277,1738426232485,-150.0,0.000143,2]
[351206278,1738426232494,-1585.96,0.00014384,2]
[351206279,1738426232503,-595.56805157,0.00014459,2]
[351206280,1738426232515,-904.43194843,0.00014459,2]
[351206281,1738426232525,-1785.19046157,0.00014496,2]
[351206282,1738426232568,-17907.1218335,0.00014496,2]
[351206283,1738426232580,-442.79999998,0.00014496,2]
[351206284,1738426232629,-3764.88770495,0.00014496,2]
[351206285,1738426232639,-200.0,0.00014496,2]
[351206286,1738426232648,-585.41,0.00014502,2]
[351206287,1738426232661,-254.72,0.00014523,2]
[351206288,1738426232671,-500.0,0.00014533,2]
[351206289,1738426232680,-642.69,0.00014534,2]
[351206290,1738426232690,-250.0,0.00014584,2]
[351206291,1738426232700,-282.15,0.00014691,2]
[351206292,1738426232710,-1000.0,0.00014917,2]
[351206293,1738426232719,-1637.38,0.00014971,2]
[351206294,1738426232729,-836.79,0.00014995,2]
[351206295,1738426232740,-171.04,0.00014996,2]
[351206296,1738426232750,-600.0,0.00015,2]
[351206297,1738426232761,-167.39,0.00015014,2]
[351206298,1738426232770,-300.0,0.0001504,2]
[351206299,1738426232780,-374.32,0.00015068,2]
[351206300,1738426232789,-375.25,0.00015068,2]
[351206301,1738426232798,-375.43,0.00015068,2]
[351206302,1738426232807,-199.31,0.00015137,2]
[351206303,1738426232816,-607.94034627,0.00015158,2]
[351206304,1738426232825,-150.0,0.00015258,2]
[351206305,1738426232835,-150.0,0.00015347,2]
[351206306,1738426232844,-282.15,0.00015425,2]
[351206307,1738426232853,-796.05,0.00015474,2]
[351206308,1738426232862,-150.0,0.00015485,2]
[351206309,1738426232871,-150.0,0.00015493,2]
[351206310,1738426232880,-152.99,0.00015568,2]
[351206311,1738426232889,-151.77,0.00015568,2]
[351206312,1738426232898,-152.38,0.00015568,2]
[351206313,1738426232907,-151.87,0.00015568,2]
[351206314,1738426232917,-152.05,0.00015568,2]
[351206315,1738426232926,-152.84,0.00015568,2]
[351206316,1738426232936,-150.89,0.00015568,2]
[351206318,1738426232945,-151.26,0.00015568,2]
[351206320,1738426232954,-1000.0,0.000156,2]
[351206322,1738426232964,-1000.0,0.0001563,2]
[351206323,1738426232973,-21762.0,0.00015716,2]
[351206324,1738426232983,-437.59,0.00015753,2]
[351206326,1738426232992,-294.71325404,0.00015777,2]
[351206327,1738426233001,-200.26,0.00015802,2]
[351206328,1738426233010,-205.88,0.00015837,2]
[351206329,1738426233020,-416.46283652,0.00015844,2]
[351206330,1738426233029,-1574.0515126,0.00015888,2]
[351206331,1738426233039,-438.4,0.0001589,2]
[351206332,1738426233050,-150.0,0.0001589,2]
[351206333,1738426233060,-150.0,0.0001589,2]
[351206334,1738426233069,-150.0,0.0001589,2]
[351206335,1738426233079,-298.38,0.0001589,2]
[351206337,1738426233089,-150.0,0.0001589,2]
[351206339,1738426233099,-1966.58,0.0001589,2]
[351206341,1738426233108,-438.4,0.0001589,2]
[351206343,1738426233118,-150.0,0.0001589,2]
[351206345,1738426233128,-150.0,0.0001589,2]
[351206347,1738426233138,-150.0,0.0001589,2]
[351206349,1738426233150,-150.0,0.0001589,2]
[351206351,1738426233160,-150.0,0.0001589,2]
[351206353,1738426233170,-266.3765,0.000159,2]
[351206355,1738426233180,-6666.0578,0.000159,2]
[351206357,1738426233190,-606.0332,0.000159,2]
[351206359,1738426233199,-2638.9788,0.000159,2]
[351206361,1738426233209,-150.0,0.00015906,2]
[351206362,1738426233219,-1000.0,0.00015984,2]
[351206363,1738426233229,-40933.59625494,0.00016,2]
[351206364,1738426233239,-4000.0,0.00016,2]
[351206365,1738426233248,-405.91195179,0.00016005,2]
[351206366,1738426233365,-202.02839448,0.00016005,2]
[351206367,1738426233375,-421.83320117,0.00016079,2]
[351206368,1738426233384,-4216.63840435,0.0001608,2]
[351206369,1738426233396,-1582.93799565,0.0001608,2]
[351206370,1738426233405,-311.4816,0.0001608,2]
[351206371,1738426233414,-2500.0,0.0001608,2]
[351206372,1738426233423,-2843.15679083,0.000161,2]
[351206373,1738426238313,-197.34499344,0.00016097,2]
[351206374,1738426238322,-1327.84369049,0.000161,2]
[351206375,1738426238334,-252.19,0.000161,2]
[351206376,1738426238370,-576.80951868,0.000161,2]
[351206377,1738426238380,-3379.62688154,0.000161,2]
[351206378,1738426238389,-421.83320111,0.00016115,2]
[351206379,1738426238398,-3379.62688152,0.00016133,2]
[351206380,1738426238407,-421.83320111,0.0001615,2]
[351206381,1738426238417,-282.15,0.0001616,2]
[351206382,1738426238611,-3379.62688152,0.00016167,2]
[351206383,1738426238621,-495.0,0.00016168,2]
[351206384,1738426238631,-639.26405462,0.00016179,2]
[351206385,1738426238641,-20262.49520014,0.00016179,2]
[351206386,1738426238684,-108296.72943921,0.00016179,2]
[351206402,1738426240603,-266.3765,0.000159,2]
[351206403,1738426240613,-39.53418178,0.00016179,2]
[351206404,1738426240635,-3741.571507,0.00016179,2]
[351206405,1738426240647,-1220.8150921,0.00016179,2]
[351206406,1738426240862,-1035529.97650799,0.00016179,2]
[351206407,1738426240873,-500.0,0.00016179,2]
[351206408,1738426240882,-399.45,0.00016179,2]
[351206409,1738426240891,-8477.0341,0.00016179,2]
[351206410,1738426240900,-1000.0,0.00016179,2]
[351206411,1738426240910,-134167.39283987,0.00016179,2]
[351206412,1738426240921,-26059.2181,0.0001618,2]
[351206413,1738426240929,-55555.0,0.0001618,2]
[351206414,1738426240939,-421.83320111,0.00016186,2]
[351206415,1738426240949,-205.18018388,0.00016187,2]
[351206416,1738426240958,-11971.19496354,0.00016197,3]
[351206417,1738426240967,-151.0,0.00016197,2]
[351206418,1738426240977,-171.146205,0.00016197,2]
[351206419,1738426240986,-171.146205,0.00016197,2]
[351206420,1738426240996,-151.0,0.00016197,2]
[351206421,1738426241005,-151.0,0.00016197,2]
[351206422,1738426241014,-177.276735,0.00016197,2]
[351206423,1738426241024,-151.0,0.00016197,2]
[351206425,1738426241033,-151.0,0.00016197,2]
[351206426,1738426241043,-151.0,0.00016199,2]
[351206427,1738426241053,-151.0,0.00016199,2]
[351206428,1738426241063,-181.217168,0.00016199,2]
[351206429,1738426241072,-151.0,0.00016199,2]
[351206430,1738426241082,-181.217168,0.00016199,2]
[351206431,1738426241092,-151.0,0.00016199,2]
[351206432,1738426241102,-151.0,0.00016199,2]
[351206433,1738426241112,-151.0,0.00016199,2]
[351206434,1738426241121,-151.0,0.00016199,2]
[351206435,1738426241130,-151.0,0.00016199,2]
[351206436,1738426241140,-151.0,0.00016199,2]
[351206438,1738426241151,-170.376399,0.00016199,2]
[351206439,1738426241161,-151.0,0.00016199,2]
[351206440,1738426241170,-151.0,0.00016199,2]
[351206441,1738426241179,-176.158384,0.00016199,2]
[351206442,1738426241193,-151.0,0.00016199,2]
[351206443,1738426241213,-346.10729,0.00016199,2]
[351206444,1738426241222,-942.497478,0.00016199,2]
[351206445,1738426241232,-346.10729,0.00016199,2]
[351206446,1738426241241,-942.497478,0.00016199,2]
[351206447,1738426241251,-361.387437,0.00016199,2]
[351206448,1738426241260,-361.387437,0.00016199,2]
[351206449,1738426241269,-545.563237,0.00016199,2]
[351206450,1738426241278,-545.563237,0.00016199,2]
[351206451,1738426241287,-376.204107,0.00016199,2]
[351206452,1738426241297,-376.204107,0.00016199,2]
[351206453,1738426241306,-268.49148,0.00016199,2]
[351206454,1738426241316,-268.49148,0.00016199,2]
[351206455,1738426241325,-80767.12566177,0.000162,2]
[351206456,1738426241335,-151.0,0.000162,2]
[351206457,1738426241344,-151.0,0.000162,2]
[351206458,1738426241354,-151.0,0.000162,2]
[351206459,1738426241363,-151.0,0.000162,2]
[351206460,1738426241373,-175.215476,0.000162,2]
[351206461,1738426241382,-175.215476,0.000162,2]
[351206462,1738426241391,-151.0,0.000162,2]
[351206463,1738426241401,-151.0,0.000162,2]
[351206464,1738426241410,-175.215476,0.000162,2]
[351206465,1738426241419,-175.215476,0.000162,2]
[351206466,1738426241429,-394.709078,0.000162,2]
[351206467,1738426241438,-394.709078,0.000162,2]
[351206468,1738426241447,-151.0,0.000162,2]
[351206469,1738426241458,-151.0,0.000162,2]
[351206470,1738426241467,-394.709078,0.000162,2]
[351206471,1738426241477,-394.709078,0.000162,2]
[351206472,1738426241486,-477.761517,0.000162,2]
[351206473,1738426241497,-477.761517,0.000162,2]
[351206474,1738426241508,-151.0,0.000162,2]
[351206475,1738426241517,-151.0,0.000162,2]
[351206476,1738426241527,-3379.62688152,0.000162,2]
[351206477,1738426241537,-477.761517,0.000162,2]
[351206478,1738426241547,-477.761517,0.000162,2]
[351206479,1738426241557,-8778.618731,0.000162,2]
[351206480,1738426241566,-8778.618731,0.000162,2]
[351206481,1738426241575,-151.0,0.000162,2]
[351206482,1738426241585,-151.0,0.000162,2]
[351206483,1738426241595,-403.584928,0.000162,2]
[351206484,1738426241604,-403.584928,0.000162,2]
[351206485,1738426241613,-403.584928,0.000162,2]
[351206486,1738426241622,-403.584928,0.000162,2]
[351206487,1738426241632,-151.0,0.000162,2]
[351206488,1738426241641,-151.0,0.000162,2]
[351206489,1738426241651,-151.0,0.000162,2]
[351206490,1738426241662,-231.653368,0.000162,2]
[351206491,1738426241672,-261.200776,0.000162,2]
[351206492,1738426241682,-231.653368,0.000162,2]
[351206493,1738426241692,-231.653368,0.000162,2]
[351206494,1738426241702,-231.653368,0.000162,2]
[351206495,1738426241712,-1504.182217,0.000162,2]
[351206496,1738426241722,-1504.182217,0.000162,2]
[351206497,1738426241732,-1504.182217,0.000162,2]
[351206498,1738426241742,-1504.182217,0.000162,2]
[351206499,1738426241752,-151.0,0.000162,2]
[351206500,1738426241761,-151.0,0.000162,2]
[351206501,1738426241770,-151.0,0.000162,2]
[351206502,1738426241780,-218.636998,0.000162,2]
[351206503,1738426241790,-151.0,0.000162,2]
[351206504,1738426241800,-151.0,0.000162,2]
[351206505,1738426241810,-225.279186,0.000162,2]
[351206506,1738426241819,-225.279186,0.000162,2]